[Event "*** Titled Tuesday Blitz"]
[Site "Chess.com"]
[Date "2020.10.27"]
[Round "10"]
[White "katchesskat"]
[Black "Triumphmate"]
[Result "0-1"]
[WhiteElo "2257"]
[BlackElo "2405"]
[TimeControl "180+1"]
[EndTime "11:52:11 PDT"]
[Termination "Triumphmate won by checkmate"]

1. c4 {[%clk 0:03:00.9]} 1... d5 {[%clk 0:03:00.4]} 2. cxd5 {[%clk 0:03:00.3]}
2... c6 {[%clk 0:02:59.4]} 3. dxc6 {[%clk 0:03:00.2]} 3... Nxc6 {[%clk
0:03:00.3]} 4. e3 {[%clk 0:03:00.5]} 4... e5 {[%clk 0:03:00.4]} 5. a3 {[%clk
0:03:00.9]} 5... Nf6 {[%clk 0:03:00.9]} 6. b4 {[%clk 0:02:57.3]} 6... Bd6 {[%clk
0:03:00.3]} 7. d3 {[%clk 0:02:57.4]} 7... Bf5 {[%clk 0:03:00.5]} 8. Ra2 {[%clk
0:02:57.6]} 8... O-O {[%clk 0:03:00.6]} 9. Nc3 {[%clk 0:02:56.5]} 9... Rc8
{[%clk 0:03:00.2]} 10. Nge2 {[%clk 0:02:48.9]} 10... Nxb4 {[%clk 0:02:49]} 11.
axb4 {[%clk 0:02:48.5]} 11... Bxb4 {[%clk 0:02:49.9]} 12. Bd2 {[%clk 0:02:48.5]}
12... Bxd3 {[%clk 0:02:49.5]} 13. Rxa7 {[%clk 0:02:44.8]} 13... Bxe2 {[%clk
0:02:47.8]} 14. Nxe2 {[%clk 0:02:43]} 14... Qb6 {[%clk 0:02:39.9]} 15. Ra1
{[%clk 0:02:16.1]} 15... Rfd8 {[%clk 0:02:39.3]} 16. Ra2 {[%clk 0:02:05.3]}
16... Ne4 {[%clk 0:02:36.4]} 17. Rb2 {[%clk 0:01:56.9]} 17... Nxd2 {[%clk
0:02:30.2]} 18. Rxd2 {[%clk 0:01:47.7]} 18... Bxd2+ {[%clk 0:02:28.2]} 19. Qxd2
{[%clk 0:01:48]} 19... Qb1+ {[%clk 0:02:26.5]} 20. Nc1 {[%clk 0:01:47.8]} 20...
Rxc1+ {[%clk 0:02:24.6]} 21. Ke2 {[%clk 0:01:48]} 21... Rxd2+ {[%clk 0:02:24.6]}
22. Kf3 {[%clk 0:01:48.1]} 22... Rxf1 {[%clk 0:02:23.1]} 23. h4 {[%clk 0:01:46]}
23... Rdxf2+ {[%clk 0:02:21.5]} 24. Kg4 {[%clk 0:01:46]} 24... Qg6+ {[%clk
0:02:21.6]} 25. Kh3 {[%clk 0:01:46]} 25... Qxg2# {[%clk 0:02:22.2]} 0-1

[Event "*** Titled Tuesday Blitz"]
[Site "Chess.com"]
[Date "2020.10.27"]
[Round "10"]
[White "LogoCzar"]
[Black "Fh2411"]
[Result "0-1"]
[WhiteElo "2374"]
[BlackElo "2527"]
[TimeControl "180+1"]
[EndTime "11:52:30 PDT"]
[Termination "Fh2411 won by resignation"]

1. e4 {[%clk 0:03:00.9]} 1... c6 {[%clk 0:02:59.4]} 2. d4 {[%clk 0:02:59.4]}
2... d5 {[%clk 0:02:59.7]} 3. e5 {[%clk 0:02:59.6]} 3... Bf5 {[%clk 0:02:59.2]}
4. h4 {[%clk 0:02:59.7]} 4... h5 {[%clk 0:02:58.6]} 5. c4 {[%clk 0:02:59.6]}
5... e6 {[%clk 0:02:57.2]} 6. Nc3 {[%clk 0:02:59.5]} 6... Ne7 {[%clk 0:02:44.5]}
7. Bg5 {[%clk 0:02:58.2]} 7... Qa5 {[%clk 0:02:38.9]} 8. Bd3 {[%clk 0:02:51.9]}
8... Bxd3 {[%clk 0:02:29.9]} 9. Qxd3 {[%clk 0:02:51.3]} 9... Qa6 {[%clk
0:02:27.6]} 10. b3 {[%clk 0:02:50.1]} 10... Nd7 {[%clk 0:02:27.2]} 11. Nge2
{[%clk 0:02:49.4]} 11... Nb6 {[%clk 0:02:25.8]} 12. O-O {[%clk 0:02:35.3]} 12...
dxc4 {[%clk 0:02:25.6]} 13. bxc4 {[%clk 0:02:35]} 13... Qxc4 {[%clk 0:02:25.2]}
14. Qe3 {[%clk 0:02:32.9]} 14... Nf5 {[%clk 0:02:21.3]} 15. Qf4 {[%clk
0:02:31.6]} 15... Bb4 {[%clk 0:02:08.4]} 16. Rac1 {[%clk 0:02:29.1]} 16... Bxc3
{[%clk 0:01:56.8]} 17. Nxc3 {[%clk 0:02:26.1]} 17... Qxd4 {[%clk 0:01:55.3]} 18.
Ne4 {[%clk 0:02:24.9]} 18... O-O {[%clk 0:01:47.9]} 19. Rfd1 {[%clk 0:02:22.5]}
19... Nd5 {[%clk 0:01:32.4]} 20. Qh2 {[%clk 0:02:02.5]} 20... Qxe4 {[%clk
0:01:31.4]} 0-1

[Event "*** Titled Tuesday Blitz"]
[Site "Chess.com"]
[Date "2020.10.27"]
[Round "10"]
[White "mapleaff"]
[Black "Dream2World_Number1"]
[Result "0-1"]
[WhiteElo "2372"]
[BlackElo "2164"]
[TimeControl "180+1"]
[EndTime "11:52:30 PDT"]
[Termination "Dream2World_Number1 won by resignation"]

1. e4 {[%clk 0:03:00.9]} 1... g6 {[%clk 0:02:59.2]} 2. h4 {[%clk 0:02:59.9]}
2... Bg7 {[%clk 0:03:00.1]} 3. h5 {[%clk 0:02:59.9]} 3... d5 {[%clk 0:03:00.2]}
4. exd5 {[%clk 0:02:59.3]} 4... Qxd5 {[%clk 0:03:00]} 5. Nc3 {[%clk 0:02:59.3]}
5... Qa5 {[%clk 0:02:59.2]} 6. Bc4 {[%clk 0:02:58]} 6... Nc6 {[%clk 0:02:54.7]}
7. Nf3 {[%clk 0:02:41.3]} 7... Bg4 {[%clk 0:02:49]} 8. hxg6 {[%clk 0:02:40]}
8... hxg6 {[%clk 0:02:47]} 9. Rxh8 {[%clk 0:02:39.7]} 9... Bxh8 {[%clk
0:02:47.9]} 10. d3 {[%clk 0:02:29.6]} 10... Ne5 {[%clk 0:02:42.2]} 11. Bb3
{[%clk 0:02:18.3]} 11... O-O-O {[%clk 0:02:38.6]} 12. Be3 {[%clk 0:02:11.7]}
12... Nxf3+ {[%clk 0:02:34.4]} 13. gxf3 {[%clk 0:02:10.5]} 13... Bxc3+ {[%clk
0:02:35]} 14. bxc3 {[%clk 0:02:09.1]} 14... Qxc3+ {[%clk 0:02:35.9]} 15. Ke2
{[%clk 0:01:55.2]} 15... Bh5 {[%clk 0:02:32.1]} 16. Bxf7 {[%clk 0:01:50.2]}
16... Qf6 {[%clk 0:02:29.6]} 17. Kd2 {[%clk 0:01:30.1]} 17... Qxf7 {[%clk
0:02:27.8]} 18. Rb1 {[%clk 0:01:24.2]} 18... Bxf3 {[%clk 0:02:26.7]} 19. Qg1
{[%clk 0:01:23.3]} 19... Nf6 {[%clk 0:02:23.9]} 20. Qg3 {[%clk 0:01:16.7]} 20...
Ne4+ {[%clk 0:02:23.4]} 0-1

[Event "*** Titled Tuesday Blitz"]
[Site "Chess.com"]
[Date "2020.10.27"]
[Round "10"]
[White "A-Fier"]
[Black "AIROPITO7"]
[Result "1-0"]
[WhiteElo "2770"]
[BlackElo "2606"]
[TimeControl "180+1"]
[EndTime "11:52:31 PDT"]
[Termination "A-Fier won by resignation"]

1. d4 {[%clk 0:03:00.9]} 1... Nf6 {[%clk 0:02:59.8]} 2. g4 {[%clk 0:03:00.7]}
2... Nxg4 {[%clk 0:02:59.2]} 3. e4 {[%clk 0:03:00.8]} 3... Nf6 {[%clk
0:02:59.5]} 4. e5 {[%clk 0:03:00.7]} 4... Ng8 {[%clk 0:02:59.4]} 5. Nc3 {[%clk
0:02:56]} 5... d6 {[%clk 0:02:59.7]} 6. f4 {[%clk 0:02:56.6]} 6... dxe5 {[%clk
0:02:58.5]} 7. fxe5 {[%clk 0:02:56.4]} 7... c5 {[%clk 0:02:56.8]} 8. d5 {[%clk
0:02:56.1]} 8... e6 {[%clk 0:02:57.1]} 9. d6 {[%clk 0:02:55.2]} 9... Qh4+ {[%clk
0:02:56.5]} 10. Ke2 {[%clk 0:02:55.2]} 10... Nc6 {[%clk 0:02:48.1]} 11. Nf3
{[%clk 0:02:53.7]} 11... Nd4+ {[%clk 0:02:47.7]} 12. Qxd4 {[%clk 0:02:45.7]}
12... Qxd4 {[%clk 0:02:44.1]} 13. Nxd4 {[%clk 0:02:45.8]} 13... cxd4 {[%clk
0:02:45]} 14. Nb5 {[%clk 0:02:46.4]} 14... Kd8 {[%clk 0:02:44.6]} 15. Nxd4
{[%clk 0:02:46]} 15... f6 {[%clk 0:02:45.1]} 16. Bf4 {[%clk 0:02:45.2]} 16...
fxe5 {[%clk 0:02:35.1]} 17. Bxe5 {[%clk 0:02:44.9]} 17... Kd7 {[%clk 0:02:35.6]}
18. Rd1 {[%clk 0:02:43.6]} 18... Nf6 {[%clk 0:02:35.8]} 19. c4 {[%clk
0:02:43.7]} 19... Ng4 {[%clk 0:02:25.7]} 20. Bg3 {[%clk 0:02:41.8]} 20... e5
{[%clk 0:02:22.4]} 21. Bh3 {[%clk 0:02:41.6]} 21... exd4 {[%clk 0:02:17.8]} 22.
Bxg4+ {[%clk 0:02:41.1]} 22... Kc6 {[%clk 0:02:15.6]} 23. Bf3+ {[%clk
0:02:39.7]} 23... Kc5 {[%clk 0:02:13.8]} 24. b4+ {[%clk 0:02:39.3]} 24... Kxb4
{[%clk 0:02:13.4]} 25. Rb1+ {[%clk 0:02:39.5]} 25... Kc5 {[%clk 0:02:08]} 26.
Rb5+ {[%clk 0:02:37.9]} 26... Kxc4 {[%clk 0:02:07.9]} 27. Rhb1 {[%clk
0:02:38.4]} 27... d3+ {[%clk 0:01:48.4]} 28. Kd2 {[%clk 0:02:37.9]} 28... a5
{[%clk 0:01:42.3]} 29. Bf2 {[%clk 0:02:30.7]} 1-0

[Event "*** Titled Tuesday Blitz"]
[Site "Chess.com"]
[Date "2020.10.27"]
[Round "10"]
[White "ENajer77"]
[Black "KacperPolOK"]
[Result "1-0"]
[WhiteElo "2702"]
[BlackElo "2437"]
[TimeControl "180+1"]
[EndTime "11:52:34 PDT"]
[Termination "ENajer77 won by resignation"]

1. d4 {[%clk 0:03:00.9]} 1... f5 {[%clk 0:02:59.3]} 2. Bf4 {[%clk 0:02:59.5]}
2... Nf6 {[%clk 0:02:57.6]} 3. e3 {[%clk 0:02:59.6]} 3... e6 {[%clk 0:02:57.3]}
4. Be2 {[%clk 0:02:59.4]} 4... Be7 {[%clk 0:02:56.8]} 5. c4 {[%clk 0:02:58.6]}
5... O-O {[%clk 0:02:50.1]} 6. Nc3 {[%clk 0:02:58]} 6... b6 {[%clk 0:02:48.4]}
7. Bf3 {[%clk 0:02:57.6]} 7... c6 {[%clk 0:02:42.3]} 8. d5 {[%clk 0:02:56.1]}
8... Bb4 {[%clk 0:02:38.9]} 9. Ne2 {[%clk 0:02:51.8]} 9... Bb7 {[%clk
0:02:30.7]} 10. a3 {[%clk 0:02:47.1]} 10... Bxc3+ {[%clk 0:02:21.6]} 11. Nxc3
{[%clk 0:02:46.4]} 11... c5 {[%clk 0:02:12]} 12. dxe6 {[%clk 0:02:44]} 12...
Bxf3 {[%clk 0:02:10.9]} 13. Qxf3 {[%clk 0:02:44.2]} 13... Nc6 {[%clk 0:01:56.9]}
14. Rd1 {[%clk 0:02:42.9]} 14... Qe7 {[%clk 0:01:53]} 15. exd7 {[%clk
0:02:42.7]} 15... Ne5 {[%clk 0:01:53.3]} 16. Bxe5 {[%clk 0:02:38.2]} 16... Qxe5
{[%clk 0:01:53.1]} 17. O-O {[%clk 0:02:38]} 17... Rad8 {[%clk 0:01:53.5]} 18.
Qc6 {[%clk 0:02:32.2]} 18... Qe7 {[%clk 0:01:45]} 19. Nd5 {[%clk 0:02:28.4]}
19... Nxd5 {[%clk 0:01:44.9]} 20. Rxd5 {[%clk 0:02:26.8]} 20... Kh8 {[%clk
0:01:43.6]} 21. g3 {[%clk 0:02:25.2]} 21... h6 {[%clk 0:01:43]} 22. Rfd1 {[%clk
0:02:24.7]} 22... Kh7 {[%clk 0:01:39.7]} 23. Rd6 {[%clk 0:02:20.6]} 23... Rf7
{[%clk 0:01:27.8]} 24. Re6 {[%clk 0:02:17.9]} 1-0

[Event "*** Titled Tuesday Blitz"]
[Site "Chess.com"]
[Date "2020.10.27"]
[Round "10"]
[White "TST2014"]
[Black "pavelalexandru07"]
[Result "1-0"]
[WhiteElo "2479"]
[BlackElo "2342"]
[TimeControl "180+1"]
[EndTime "11:52:47 PDT"]
[Termination "TST2014 won by resignation"]

1. d4 {[%clk 0:03:00.9]} 1... Nf6 {[%clk 0:02:54.8]} 2. c4 {[%clk 0:03:00.6]}
2... c5 {[%clk 0:02:54.5]} 3. d5 {[%clk 0:03:00.4]} 3... e6 {[%clk 0:02:54.9]}
4. Nc3 {[%clk 0:03:00.1]} 4... exd5 {[%clk 0:02:55.4]} 5. cxd5 {[%clk 0:03:01]}
5... d6 {[%clk 0:02:51.6]} 6. e4 {[%clk 0:03:00.8]} 6... g6 {[%clk 0:02:52]} 7.
Bd3 {[%clk 0:02:59.2]} 7... Bg7 {[%clk 0:02:51.8]} 8. h3 {[%clk 0:02:58.7]} 8...
O-O {[%clk 0:02:52]} 9. Nf3 {[%clk 0:02:59.2]} 9... b5 {[%clk 0:02:52.4]} 10.
Bxb5 {[%clk 0:02:56.6]} 10... Nxe4 {[%clk 0:02:52.6]} 11. Nxe4 {[%clk
0:02:56.6]} 11... Qa5+ {[%clk 0:02:52.9]} 12. Nfd2 {[%clk 0:02:57]} 12... Qxb5
{[%clk 0:02:52.8]} 13. Nxd6 {[%clk 0:02:57.6]} 13... Qa6 {[%clk 0:02:53.1]} 14.
N2c4 {[%clk 0:02:57.9]} 14... Nd7 {[%clk 0:02:50.4]} 15. O-O {[%clk 0:02:57.3]}
15... Ne5 {[%clk 0:02:50.5]} 16. Nxe5 {[%clk 0:02:47.3]} 16... Bxe5 {[%clk
0:02:44.4]} 17. Nxc8 {[%clk 0:02:47.1]} 17... Rfxc8 {[%clk 0:02:38.3]} 18. a4
{[%clk 0:02:44.7]} 18... c4 {[%clk 0:02:35.8]} 19. Ra3 {[%clk 0:02:38.4]} 19...
Rab8 {[%clk 0:02:35.1]} 20. Qe2 {[%clk 0:02:36.3]} 20... Qf6 {[%clk 0:02:32]}
21. Rf3 {[%clk 0:02:34.5]} 21... Qg7 {[%clk 0:02:31.6]} 22. Re3 {[%clk 0:02:14]}
22... Bxb2 {[%clk 0:02:19.1]} 23. d6 {[%clk 0:02:13.3]} 23... Bf6 {[%clk
0:02:08.5]} 24. d7 {[%clk 0:02:10.3]} 24... Rf8 {[%clk 0:02:07.6]} 25. Re8
{[%clk 0:02:08.8]} 25... c3 {[%clk 0:02:03.9]} 26. Bf4 {[%clk 0:02:05.7]} 26...
Rc8 {[%clk 0:01:27.5]} 1-0

[Event "*** Titled Tuesday Blitz"]
[Site "Chess.com"]
[Date "2020.10.27"]
[Round "10"]
[White "MathiasWomacka"]
[Black "Akhayan"]
[Result "1-0"]
[WhiteElo "2493"]
[BlackElo "2262"]
[TimeControl "180+1"]
[EndTime "11:52:53 PDT"]
[Termination "MathiasWomacka won by resignation"]

1. e4 {[%clk 0:02:51]} 1... e6 {[%clk 0:03:00]} 2. d4 {[%clk 0:02:48.8]} 2... d5
{[%clk 0:03:00.2]} 3. Nd2 {[%clk 0:02:49.4]} 3... c5 {[%clk 0:02:58.4]} 4. exd5
{[%clk 0:02:48.1]} 4... Qxd5 {[%clk 0:02:57.5]} 5. Ngf3 {[%clk 0:02:47.7]} 5...
cxd4 {[%clk 0:02:54]} 6. Bc4 {[%clk 0:02:48.1]} 6... Qd8 {[%clk 0:02:52]} 7. O-O
{[%clk 0:02:48]} 7... Nf6 {[%clk 0:02:50.2]} 8. Nb3 {[%clk 0:02:48]} 8... Nc6
{[%clk 0:02:50.5]} 9. Nbxd4 {[%clk 0:02:47.8]} 9... Nxd4 {[%clk 0:02:50.3]} 10.
Nxd4 {[%clk 0:02:48.7]} 10... a6 {[%clk 0:02:50.1]} 11. Re1 {[%clk 0:02:46.1]}
11... Qc7 {[%clk 0:02:50.1]} 12. Bf1 {[%clk 0:02:45.9]} 12... Bd6 {[%clk
0:02:49.8]} 13. Nf5 {[%clk 0:02:38.9]} 13... Bxh2+ {[%clk 0:02:47.9]} 14. Kh1
{[%clk 0:02:39]} 14... O-O {[%clk 0:02:48.2]} 15. Nxg7 {[%clk 0:02:36.4]} 15...
Kxg7 {[%clk 0:02:41]} 16. Qd4 {[%clk 0:02:35.2]} 16... e5 {[%clk 0:01:54.3]} 17.
Qh4 {[%clk 0:02:32.2]} 17... Bf4 {[%clk 0:01:52.1]} 18. Bxf4 {[%clk 0:02:27.5]}
18... exf4 {[%clk 0:01:51.6]} 19. Qg5+ {[%clk 0:02:27]} 19... Kh8 {[%clk
0:01:51.9]} 20. Qxf6+ {[%clk 0:02:26.7]} 20... Kg8 {[%clk 0:01:52.3]} 21. Re5
{[%clk 0:02:17]} 21... h6 {[%clk 0:01:48.5]} 22. Rh5 {[%clk 0:02:09.1]} 22...
Re8 {[%clk 0:01:25.7]} 23. Rxh6 {[%clk 0:02:04.5]} 1-0

[Event "*** Titled Tuesday Blitz"]
[Site "Chess.com"]
[Date "2020.10.27"]
[Round "10"]
[White "Dr_crypt"]
[Black "Nils_03"]
[Result "1-0"]
[WhiteElo "2455"]
[BlackElo "2261"]
[TimeControl "180+1"]
[EndTime "11:53:07 PDT"]
[Termination "Dr_crypt won by resignation"]

1. d4 {[%clk 0:02:58.4]} 1... f5 {[%clk 0:02:59.7]} 2. Nf3 {[%clk 0:02:58.3]}
2... Nf6 {[%clk 0:02:59.5]} 3. Bg5 {[%clk 0:02:57.4]} 3... e6 {[%clk 0:02:58.2]}
4. Nbd2 {[%clk 0:02:57]} 4... d5 {[%clk 0:02:58.1]} 5. c4 {[%clk 0:02:54.4]}
5... c6 {[%clk 0:02:57.7]} 6. e3 {[%clk 0:02:53.9]} 6... Be7 {[%clk 0:02:54.9]}
7. Bxf6 {[%clk 0:02:52.2]} 7... Bxf6 {[%clk 0:02:54.5]} 8. Bd3 {[%clk
0:02:52.2]} 8... O-O {[%clk 0:02:33.4]} 9. Qc2 {[%clk 0:02:50.5]} 9... Nd7
{[%clk 0:02:29.6]} 10. cxd5 {[%clk 0:02:43.4]} 10... cxd5 {[%clk 0:02:30.5]} 11.
O-O {[%clk 0:02:41.1]} 11... b6 {[%clk 0:02:24.9]} 12. Qc6 {[%clk 0:02:32.4]}
12... Qe7 {[%clk 0:02:22.5]} 13. Qxa8 {[%clk 0:02:28.2]} 13... Ba6 {[%clk
0:02:22.4]} 14. Qxf8+ {[%clk 0:02:21.3]} 14... Nxf8 {[%clk 0:02:22.5]} 15. Bxa6
{[%clk 0:02:22]} 15... f4 {[%clk 0:02:19.1]} 16. e4 {[%clk 0:02:18.7]} 16... b5
{[%clk 0:02:06.8]} 17. exd5 {[%clk 0:02:06.9]} 17... exd5 {[%clk 0:02:04.6]} 18.
Bxb5 {[%clk 0:02:05.8]} 18... g5 {[%clk 0:02:04.5]} 19. Rfe1 {[%clk 0:02:05.4]}
19... Qg7 {[%clk 0:02:04.3]} 20. Ne5 {[%clk 0:01:53.4]} 20... g4 {[%clk
0:02:03.4]} 21. Bc6 {[%clk 0:01:50.5]} 21... g3 {[%clk 0:02:01.4]} 22. Bxd5+
{[%clk 0:01:49.2]} 22... Kh8 {[%clk 0:02:01.2]} 23. Rac1 {[%clk 0:01:24.3]}
23... Qh6 {[%clk 0:01:58.5]} 24. Nf7+ {[%clk 0:01:20.7]} 1-0

[Event "*** Titled Tuesday Blitz"]
[Site "Chess.com"]
[Date "2020.10.27"]
[Round "10"]
[White "pfalcon1949"]
[Black "Kazmin_Dmitrij"]
[Result "0-1"]
[WhiteElo "2022"]
[BlackElo "2276"]
[TimeControl "180+1"]
[EndTime "11:53:18 PDT"]
[Termination "Kazmin_Dmitrij won by resignation"]

1. c4 {[%clk 0:03:00.9]} 1... Nf6 {[%clk 0:02:58.2]} 2. Nc3 {[%clk 0:03:00.5]}
2... g6 {[%clk 0:02:58.4]} 3. g3 {[%clk 0:03:00.7]} 3... Bg7 {[%clk 0:02:58.7]}
4. Bg2 {[%clk 0:03:00.3]} 4... c6 {[%clk 0:02:58.9]} 5. e4 {[%clk 0:03:00.5]}
5... d6 {[%clk 0:02:58.6]} 6. Nge2 {[%clk 0:03:01]} 6... O-O {[%clk 0:02:58.5]}
7. O-O {[%clk 0:03:01.6]} 7... Be6 {[%clk 0:02:58.4]} 8. d3 {[%clk 0:03:00.5]}
8... Qd7 {[%clk 0:02:55.3]} 9. f4 {[%clk 0:02:54.7]} 9... Bh3 {[%clk 0:02:54.2]}
10. f5 {[%clk 0:02:51.4]} 10... Bxg2 {[%clk 0:02:53.7]} 11. Kxg2 {[%clk
0:02:52.3]} 11... Na6 {[%clk 0:02:39.2]} 12. Be3 {[%clk 0:02:50.1]} 12... b5
{[%clk 0:02:34.8]} 13. b3 {[%clk 0:02:46.8]} 13... b4 {[%clk 0:02:32.3]} 14. Nb1
{[%clk 0:02:43.7]} 14... Nc7 {[%clk 0:02:29.2]} 15. Nd2 {[%clk 0:02:33.4]} 15...
Ng4 {[%clk 0:02:28.1]} 16. Bd4 {[%clk 0:02:33]} 16... Bxd4 {[%clk 0:02:26.3]}
17. Nxd4 {[%clk 0:02:33]} 17... Ne3+ {[%clk 0:02:26.5]} 18. Kg1 {[%clk
0:02:31.6]} 18... Nxd1 {[%clk 0:02:26.6]} 19. Raxd1 {[%clk 0:02:32.5]} 19... a5
{[%clk 0:02:18.2]} 20. Rf4 {[%clk 0:02:28.9]} 20... Ne8 {[%clk 0:02:17.2]} 21.
Rdf1 {[%clk 0:02:29.4]} 21... Qa7 {[%clk 0:02:16]} 22. Nf3 {[%clk 0:02:27.6]}
22... a4 {[%clk 0:02:10.7]} 23. Kg2 {[%clk 0:02:27.8]} 23... axb3 {[%clk
0:02:09.9]} 24. axb3 {[%clk 0:02:27.2]} 24... c5 {[%clk 0:02:04.4]} 25. Nb5
{[%clk 0:02:10.8]} 25... Qa2+ {[%clk 0:01:59.1]} 26. Rf2 {[%clk 0:02:10.2]}
26... Qxb3 {[%clk 0:01:58.9]} 27. Ng5 {[%clk 0:02:05.6]} 27... Ra2 {[%clk
0:01:43.7]} 28. fxg6 {[%clk 0:01:59.8]} 28... Rxf2+ {[%clk 0:01:43]} 29. Rxf2
{[%clk 0:02:00.7]} 29... hxg6 {[%clk 0:01:42.4]} 30. h4 {[%clk 0:01:56.8]} 30...
Qxd3 {[%clk 0:01:36]} 31. Rf3 {[%clk 0:01:55.8]} 31... Qxc4 {[%clk 0:01:33.4]}
32. Na7 {[%clk 0:01:46.2]} 32... Qa6 {[%clk 0:01:30.4]} 0-1

[Event "*** Titled Tuesday Blitz"]
[Site "Chess.com"]
[Date "2020.10.27"]
[Round "10"]
[White "madmax011"]
[Black "IngOscarArdila"]
[Result "0-1"]
[WhiteElo "1848"]
[BlackElo "2157"]
[TimeControl "180+1"]
[EndTime "11:53:20 PDT"]
[Termination "IngOscarArdila won by resignation"]

1. d4 {[%clk 0:03:00.9]} 1... Nf6 {[%clk 0:02:59.3]} 2. c4 {[%clk 0:03:01.2]}
2... g6 {[%clk 0:02:59]} 3. Nf3 {[%clk 0:03:01.3]} 3... Bg7 {[%clk 0:02:59.5]}
4. g3 {[%clk 0:03:01.3]} 4... d6 {[%clk 0:03:00]} 5. Bg2 {[%clk 0:03:01.2]} 5...
O-O {[%clk 0:03:00.6]} 6. O-O {[%clk 0:03:01.4]} 6... Nbd7 {[%clk 0:03:01.1]} 7.
Nc3 {[%clk 0:03:01.3]} 7... e5 {[%clk 0:03:00.8]} 8. e4 {[%clk 0:03:01]} 8...
exd4 {[%clk 0:03:00.6]} 9. Nxd4 {[%clk 0:03:00.6]} 9... Re8 {[%clk 0:03:01.2]}
10. Re1 {[%clk 0:03:00.2]} 10... Nc5 {[%clk 0:03:01.3]} 11. Qc2 {[%clk
0:02:59.1]} 11... a5 {[%clk 0:03:01.4]} 12. Be3 {[%clk 0:02:53.3]} 12... Ng4
{[%clk 0:03:01.2]} 13. Rad1 {[%clk 0:02:50.1]} 13... Nxe3 {[%clk 0:03:00.9]} 14.
Rxe3 {[%clk 0:02:49.2]} 14... Bd7 {[%clk 0:03:00.2]} 15. f4 {[%clk 0:02:49]}
15... f5 {[%clk 0:02:55.4]} 16. Re2 {[%clk 0:02:32.4]} 16... fxe4 {[%clk
0:02:50.5]} 17. Nxe4 {[%clk 0:02:15.6]} 17... Bg4 {[%clk 0:02:50]} 18. Nxc5
{[%clk 0:01:43.1]} 18... Bxd4+ {[%clk 0:02:39.2]} 19. Rxd4 {[%clk 0:01:41.7]}
19... Rxe2 {[%clk 0:02:39.1]} 20. Qd3 {[%clk 0:01:25]} 20... Qe7 {[%clk
0:02:30.6]} 21. Ne4 {[%clk 0:01:20.5]} 21... Re8 {[%clk 0:02:23.7]} 22. Nc3
{[%clk 0:01:14.6]} 22... Rxb2 {[%clk 0:02:17.9]} 23. h3 {[%clk 0:01:12.9]} 23...
Qe1+ {[%clk 0:02:16.9]} 24. Kh2 {[%clk 0:01:11.3]} 24... Qf2 {[%clk 0:02:13.8]}
0-1

[Event "*** Titled Tuesday Blitz"]
[Site "Chess.com"]
[Date "2020.10.27"]
[Round "10"]
[White "Natalya_Buksa"]
[Black "mjray79"]
[Result "1-0"]
[WhiteElo "2551"]
[BlackElo "2456"]
[TimeControl "180+1"]
[EndTime "11:53:21 PDT"]
[Termination "Natalya_Buksa won by checkmate"]

1. d4 {[%clk 0:03:00.9]} 1... Nf6 {[%clk 0:02:59.6]} 2. Nc3 {[%clk 0:03:01.2]}
2... g6 {[%clk 0:03:00.1]} 3. Bg5 {[%clk 0:03:00.1]} 3... Bg7 {[%clk 0:02:58]}
4. e4 {[%clk 0:03:00.6]} 4... d6 {[%clk 0:02:56.6]} 5. e5 {[%clk 0:03:01.1]}
5... Nfd7 {[%clk 0:02:53.6]} 6. f4 {[%clk 0:03:01]} 6... O-O {[%clk 0:02:30.5]}
7. h4 {[%clk 0:02:59.9]} 7... h6 {[%clk 0:02:23.3]} 8. h5 {[%clk 0:02:58.4]}
8... hxg5 {[%clk 0:02:13.7]} 9. hxg6 {[%clk 0:02:58.7]} 9... fxg6 {[%clk
0:02:13.3]} 10. Bc4+ {[%clk 0:02:58.2]} 10... Rf7 {[%clk 0:02:09.5]} 11. e6
{[%clk 0:02:49]} 11... Rxf4 {[%clk 0:01:53.3]} 12. exd7+ {[%clk 0:02:46.9]}
12... Kf8 {[%clk 0:01:53.4]} 13. dxc8=Q {[%clk 0:02:29.4]} 13... Qxc8 {[%clk
0:01:54.3]} 14. Nge2 {[%clk 0:02:23.9]} 14... Rf5 {[%clk 0:01:35.9]} 15. Qd2
{[%clk 0:02:22.5]} 15... Nc6 {[%clk 0:01:33.3]} 16. O-O-O {[%clk 0:02:21.1]}
16... e6 {[%clk 0:01:20.1]} 17. Rdf1 {[%clk 0:02:19.9]} 17... d5 {[%clk
0:01:19.1]} 18. Bd3 {[%clk 0:02:18.3]} 18... Rxf1+ {[%clk 0:01:16]} 19. Rxf1+
{[%clk 0:02:19.2]} 19... Kg8 {[%clk 0:01:16.3]} 20. Qxg5 {[%clk 0:02:17.8]}
20... Nb4 {[%clk 0:01:08.6]} 21. Bxg6 {[%clk 0:02:15.3]} 21... c5 {[%clk
0:00:52.5]} 22. Qh5 {[%clk 0:02:10.6]} 22... cxd4 {[%clk 0:00:37.6]} 23. Qh7#
{[%clk 0:02:10.4]} 1-0

[Event "*** Titled Tuesday Blitz"]
[Site "Chess.com"]
[Date "2020.10.27"]
[Round "10"]
[White "TengisChess"]
[Black "topotun"]
[Result "1/2-1/2"]
[WhiteElo "2630"]
[BlackElo "2761"]
[TimeControl "180+1"]
[EndTime "11:53:25 PDT"]
[Termination "Game drawn by agreement"]

1. e4 {[%clk 0:03:00.9]} 1... c6 {[%clk 0:02:59.9]} 2. d4 {[%clk 0:02:59.8]}
2... d5 {[%clk 0:03:00.8]} 3. exd5 {[%clk 0:02:58.1]} 3... cxd5 {[%clk
0:03:00.9]} 4. c4 {[%clk 0:02:59]} 4... Nf6 {[%clk 0:03:00.8]} 5. Nc3 {[%clk
0:02:59.9]} 5... e6 {[%clk 0:03:01.1]} 6. Bg5 {[%clk 0:02:57.1]} 6... Bb4 {[%clk
0:02:59.1]} 7. Nf3 {[%clk 0:02:50.4]} 7... h6 {[%clk 0:02:56.8]} 8. Bxf6 {[%clk
0:02:47.8]} 8... Qxf6 {[%clk 0:02:57.7]} 9. cxd5 {[%clk 0:02:43.9]} 9... exd5
{[%clk 0:02:57]} 10. Bb5+ {[%clk 0:02:43.5]} 10... Nc6 {[%clk 0:02:48.6]} 11.
O-O {[%clk 0:02:40.3]} 11... Bxc3 {[%clk 0:02:48.7]} 12. bxc3 {[%clk 0:02:41.2]}
12... O-O {[%clk 0:02:48.6]} 13. Bxc6 {[%clk 0:02:32.8]} 13... Qxc6 {[%clk
0:02:48]} 14. Qb3 {[%clk 0:02:30.3]} 14... b6 {[%clk 0:02:41.6]} 15. Rfe1 {[%clk
0:02:27.2]} 15... Bf5 {[%clk 0:02:35.9]} 16. Ne5 {[%clk 0:02:20.9]} 16... Qd6
{[%clk 0:02:35.8]} 17. Re3 {[%clk 0:02:18.1]} 17... f6 {[%clk 0:02:19]} 18. Nd3
{[%clk 0:02:14]} 18... Bxd3 {[%clk 0:02:14.3]} 19. Rxd3 {[%clk 0:02:12.8]} 19...
Rfe8 {[%clk 0:02:14]} 20. a4 {[%clk 0:02:09.2]} 20... Rac8 {[%clk 0:02:11.7]}
21. a5 {[%clk 0:02:06.5]} 21... bxa5 {[%clk 0:02:11.1]} 22. Qb5 {[%clk
0:02:03.9]} 22... Qa3 {[%clk 0:01:39.5]} 23. Qxd5+ {[%clk 0:01:51.5]} 23... Kh8
{[%clk 0:01:39.6]} 24. Rdd1 {[%clk 0:01:48.4]} 24... Qxc3 {[%clk 0:01:32]} 25.
Qxa5 {[%clk 0:01:45.2]} 25... Qxa5 {[%clk 0:01:19.2]} 26. Rxa5 {[%clk
0:01:46.1]} 26... Rcd8 {[%clk 0:01:20]} 27. Rxa7 {[%clk 0:01:43.3]} 27... Rxd4
{[%clk 0:01:19.5]} 28. Raa1 {[%clk 0:01:41.9]} 28... Rxd1+ {[%clk 0:01:19.5]}
1/2-1/2